bitfinex-derivatives/quotes_SOLF0:USTF0_20241011
["timestamp","ask_amount","ask_price","bid_price","bid_amount"]
[1728660936462,1.3952,143.86,143.81,3.4774]
[1728660936966,3.4769,143.85,143.81,3.4774]
[1728660937164,1.3952,143.86,143.81,3.4774]
[1728660937364,1.3952,143.86,143.82,3.4772]
[1728660937664,1.54052,143.87,143.82,3.4772]
[1728660937868,1.54052,143.87,143.8,16.7]
[1728660938070,3.4766,143.86,143.8,16.7]
[1728660938559,3.4766,143.86,143.82,3.4771]
[1728660938760,3.4766,143.86,143.8,18.0284]
[1728660939167,3.4767,143.85,143.82,3.4772]
[1728660939462,0.12502,143.87,143.83,6.2]
[1728660939869,3.4766,143.86,143.83,9.677]
[1728660940071,0.12502,143.87,143.83,6.2]
[1728660940270,3.60142,143.87,143.84,3.4768]
[1728660941059,3.60142,143.87,143.83,6.2]
[1728660941265,3.4766,143.86,143.83,9.677]
[1728660941967,3.4765,143.86,143.83,9.677]
[1728660942166,0.12502,143.87,143.83,9.677]
[1728660942471,0.12502,143.87,143.83,6.2]
[1728660942669,3.4767,143.85,143.83,6.2]
[1728660943677,3.4767,143.85,143.83,9.6771]
[1728660945470,0.12502,143.87,143.83,6.2]
[1728660945672,0.12502,143.87,143.84,16.7]
[1728660946271,0.12502,143.87,143.86,3.4764]
[1728660953375,0.12502,143.87,143.81,2.7056]
[1728660953685,0.12502,143.87,143.82,6.2]
[1728660953886,3.4771,143.84,143.82,6.2]
[1728660954581,3.4771,143.84,143.82,9.6774]
[1728660954778,3.4771,143.84,143.82,6.2]
[1728660954989,3.4771,143.83,143.82,6.2]
[1728660956680,16.7,143.85,143.77,6.16193596]
[1728660956885,3.4779,143.81,143.78,6.2]
[1728660957077,16.7,143.85,143.78,6.2]
[1728660957279,1.4205,143.86,143.75,16.82502]
[1728660957280,3.4781,143.79,143.75,16.82502]
[1728660957484,3.4781,143.79,143.76,9.6787]
[1728660957682,1.4205,143.86,143.75,0.12502]
[1728660957683,16.7,143.81,143.75,0.12502]
[1728660957880,3.4784,143.78,143.76,6.2]
[1728660958191,16.7,143.81,143.76,6.2]
[1728660958788,3.4782,143.79,143.76,9.6787]
[1728660961597,1.3779,143.82,143.76,6.2]
[1728660961889,3.4777,143.81,143.78,3.4783]
[1728660962400,1.3779,143.82,143.76,6.2]
[1728660962604,3.4773,143.83,143.79,3.478]
[1728660963198,16.7,143.85,143.79,3.478]
[1728660963398,3.4774,143.82,143.79,3.478]
[1728660963701,3.4774,143.82,143.78,3.4782]
[1728660963901,3.4774,143.82,143.76,6.2]
[1728660964299,3.4773,143.83,143.76,6.2]
[1728660964498,22.9,143.85,143.76,6.2]
[1728660964698,16.7,143.85,143.77,20.23622087]
[1728660964898,3.477,143.84,143.77,20.23622087]
[1728660965106,2.7766,143.86,143.77,20.23622087]
[1728660965310,2.7766,143.86,143.81,3.4775]
[1728660965603,3.4767,143.85,143.77,20.23622087]
[1728660965800,3.4767,143.85,143.82,3.4773]
[1728660966711,3.4767,143.85,143.78,20.12812446]
[1728660966905,3.4767,143.85,143.81,3.4775]
[1728660967500,6.2531,143.86,143.82,3.4773]
[1728660967807,0.12502,143.87,143.8,6.2]
[1728660968010,3.60132,143.87,143.83,3.477]
[1728660968409,0.12502,143.87,143.8,22.9]
[1728660968709,0.12502,143.87,143.84,3.4768]
[1728660969103,3.60122,143.87,143.84,3.4768]
[1728660969503,3.60122,143.87,143.83,3.4771]
[1728660969705,0.12502,143.87,143.8,6.2]
[1728660969907,3.4771,143.84,143.8,6.2]
[1728660970202,16.82502,143.87,143.8,9.6779]
[1728660970605,3.477,143.84,143.81,3.4776]
[1728660970798,3.477,143.84,143.8,6.2]
[1728660971204,16.82502,143.87,143.8,9.6777]
[1728660971603,0.12502,143.87,143.8,22.9]
[1728660971810,3.4765,143.86,143.82,3.4772]
[1728660972612,3.4765,143.86,143.83,3.4771]
[1728660972811,3.60132,143.87,143.83,3.4771]
[1728660973409,0.12502,143.87,143.8,6.2]
[1728660973713,3.4767,143.85,143.8,6.2]
[1728660974110,3.4769,143.84,143.8,6.2]
[1728660974308,16.82502,143.87,143.8,6.2]
[1728660974703,3.4769,143.85,143.81,3.4775]
[1728660975602,0.12502,143.87,143.8,16.7]
[1728660975807,3.4766,143.86,143.8,16.7]
[1728660976211,3.4766,143.86,143.83,3.4771]
[1728660976617,3.60132,143.87,143.83,3.4771]
[1728660977111,0.12502,143.87,143.83,3.4771]
[1728660977318,3.4764,143.86,143.8,16.7]
[1728660977611,0.12502,143.87,143.83,16.7]
[1728660977818,0.12502,143.87,143.8,16.7]
[1728660977819,0.12502,143.87,143.86,3.4764]
[1728660982410,0.12502,143.87,143.86,23.62927281]
[1728660986213,3.59972,143.93,143.91,3.475]
[1728660987020,3.59982,143.93,143.9,3.4753]
[1728660987225,0.12502,143.93,143.88,22.88]
[1728660987418,0.12502,143.93,143.88,6.18]
[1728660988216,0.12502,143.93,143.88,9.6557]
[1728660988617,0.12502,143.93,143.91,16.7]
[1728660988821,0.12502,143.93,143.92,6.18]
[1728660989527,0.12502,143.93,143.92,9.655]
[1728660990114,0.12502,143.93,143.89,6.18]
[1728660990822,3.4753,143.91,143.89,6.18]
[1728660991027,0.12502,143.93,143.89,6.18]
[1728660991423,3.4751,143.92,143.89,6.18]
[1728660991618,0.12502,143.93,143.89,22.88]
[1728660991823,0.12502,143.93,143.91,3.4751]
[1728660992026,0.12502,143.93,143.9,16.7]
[1728660992915,0.12502,143.93,143.92,3.475]
[1728660993525,0.12502,143.93,143.92,20.175]
[1728660994322,76.46608803,143.98,143.92,16.7]
[1728660994518,76.46608803,143.98,143.93,6.18]
[1728660994725,79.93978803,143.98,143.93,6.18]
[1728660995025,76.46608803,143.98,143.93,6.18]
[1728660995827,3.4738,143.97,143.95,3.4741]
[1728660996126,76.46608803,143.98,143.95,3.4741]
[1728660996724,79.93978803,143.98,143.95,3.4741]
[1728660996926,93.16608803,143.98,143.93,3.4746]
[1728660997124,93.16608803,143.98,143.87,3.53362375]
[1728660997125,93.16608803,143.98,143.92,6.18]
[1728660997821,93.16608803,143.98,143.92,9.655]
[1728660998223,3.4744,143.95,143.92,9.655]
[1728660999331,76.46608803,143.98,143.92,6.18]
[1728661001528,3.474,143.97,143.94,3.4744]
[1728661003129,76.46608803,143.98,143.92,22.88]
[1728661004336,3.4738,143.97,143.92,22.88]
[1728661005332,3.4746,143.94,143.92,6.18]
[1728661005537,76.46608803,143.98,143.91,2.7127]
[1728661005731,76.46608803,143.98,143.92,6.18]
[1728661005931,3.4744,143.95,143.93,3.4747]
[1728661006539,76.46608803,143.98,143.92,6.18]
[1728661006731,3.4745,143.94,143.92,9.6549]
[1728661007338,3.4744,143.95,143.92,9.6549]
[1728661007832,3.4744,143.95,143.93,3.4747]
[1728661008231,76.46608803,143.98,143.93,16.7]
[1728661008436,0.12502,143.99,143.98,3.4735]
[1728661008638,0.12502,143.99,143.98,9.6535]
[1728661013437,0.12502,143.99,143.98,6.18]
[1728661013844,3.4735,143.98,143.94,16.7]
[1728661014145,0.12502,143.99,143.97,6.16]
[1728661014541,3.59832,143.99,143.97,6.16]
[1728661015043,0.12502,143.99,143.97,6.16]
[1728661015451,3.4735,143.98,143.97,6.16]
[1728661017149,3.59842,143.99,143.97,6.16]
[1728661017945,3.59842,143.99,143.97,9.6338]
[1728661018147,0.12502,143.99,143.97,22.86]
[1728661018348,0.12502,143.99,143.98,3.4735]
[1728661029163,1e-08,143.99,143.98,20.1735]
[1728661031972,1e-08,143.99,143.98,3.4735]
[1728661033156,1e-08,143.99,143.98,20.1735]
[1728661038469,1e-08,143.99,143.98,14.1435]
[1728661039867,1e-08,143.99,143.98,3.4735]
[1728661040373,1e-08,143.99,143.96,3.4739]
[1728661040562,3.47350001,143.99,143.97,6.16]
[1728661040975,3.47350001,143.99,143.97,9.6337]
[1728661042070,1e-08,143.99,143.97,9.6337]
[1728661042473,1e-08,143.99,143.97,6.16]
[1728661042775,1e-08,143.99,143.98,3.4735]
[1728661043375,1e-08,143.99,143.98,20.1435]
[1728661045868,0.12502,144.05,143.98,16.67]
[1728661046069,0.12502,144.05,144.0,16.67]
[1728661046285,0.12502,144.05,144.01,6.16]
[1728661046487,0.12502,144.05,144.03,3.4722]
[1728661046877,0.12502,144.05,144.02,16.67]
[1728661047081,0.12502,144.05,144.04,3.4721]
[1728661048183,0.12502,144.05,144.04,20.1421]
[1728661048377,1.3509,144.1,144.09,3.4709]
[1728661048578,0.12502,144.11,144.09,3.4709]
[1728661048779,0.12502,144.11,144.07,6.16]
[1728661048979,3.59562,144.11,144.08,3.4711]
[1728661049579,0.12502,144.11,144.07,6.16]
[1728661050081,0.12502,144.11,144.1,3.4706]
[1728661050879,0.12502,144.11,144.08,16.67]
[1728661051078,0.12502,144.11,144.09,3.4708]
[1728661052388,0.12502,144.11,144.1,3.4706]
[1728661053789,3.59542,144.11,144.07,6.16]
[1728661054080,0.12502,144.11,144.07,6.16]
[1728661054479,3.4707,144.1,144.07,9.6311]
[1728661054780,3.4707,144.1,144.07,6.16]
[1728661056283,3.4707,144.1,144.07,3.4713]
[1728661056587,3.4707,144.1,144.08,6.16]
[1728661057882,3.4707,144.1,144.08,9.6311]
[1728661058084,3.59552,144.11,144.08,9.6311]
[1728661058389,3.59552,144.11,144.08,6.16]
[1728661058886,0.12502,144.11,144.09,3.4708]
[1728661061393,3.4706,144.1,144.08,6.16]
[1728661061885,0.12502,144.11,144.08,6.16]
[1728661063393,3.4708,144.1,144.08,6.16]
[1728661063691,0.12502,144.11,144.08,6.16]
[1728661064585,0.12502,144.11,144.09,16.67]
[1728661064786,0.12502,144.11,144.1,3.4706]
[1728661068999,0.12502,144.11,144.08,6.16]
[1728661070385,0.12502,144.11,144.1,3.4706]
[1728661071388,0.12502,144.11,144.08,6.16]
[1728661071592,0.12502,144.11,144.09,3.4707]
[1728661074598,0.12502,144.11,144.09,14.1407]
[1728661075398,0.12502,144.11,144.09,10.67]
[1728661075599,0.12502,144.11,144.1,14.1406]
[1728661076399,0.12502,144.11,144.1,3.4706]
[1728661076791,3.59542,144.11,144.09,14.1408]
[1728661077108,10.79502,144.11,144.07,6.14]
[1728661077297,3.471,144.09,144.07,6.14]
[1728661078195,3.471,144.09,144.07,20.2812]
[1728661078400,3.4708,144.1,144.07,16.81]
[1728661078595,3.4708,144.1,144.07,6.14]
[1728661079001,3.4708,144.1,144.07,9.6112]
[1728661080103,0.12502,144.11,144.07,6.14]
[1728661080298,0.12502,144.11,144.05,16.65]
[1728661080507,0.12502,144.11,144.04,3.53401686]
[1728661080807,3.471,144.09,144.06,3.4714]
[1728661082211,3.471,144.09,144.07,3.4714]
[1728661082920,3.4708,144.1,144.07,6.14]
[1728661083112,0.12502,144.11,144.07,6.14]
[1728661083811,3.4711,144.08,144.07,6.14]
[1728661084816,3.471,144.09,144.07,6.14]
[1728661085909,0.12502,144.11,144.05,16.65]
[1728661086108,0.12502,144.11,144.03,6.14]
[1728661086109,16.65,144.08,144.03,6.14]
[1728661086823,3.472,144.05,144.03,6.14]
[1728661087417,3.472,144.05,144.03,9.6122]
[1728661088415,16.65,144.06,143.99,0.12502]
[1728661088716,16.65,144.04,143.99,6.26502]
[1728661088924,3.4727,144.02,143.99,9.73812]
[1728661089315,3.4727,144.02,143.99,6.26502]
[1728661089624,3.4727,144.02,144.0,3.4729]
[1728661090120,3.4721,144.04,144.02,3.4725]
[1728661090923,3.4721,144.04,143.99,22.91502]
[1728661091122,3.4721,144.04,144.01,3.4727]
[1728661091417,6.14,144.07,144.01,3.4727]
[1728661091622,3.4723,144.03,144.01,3.4727]
[1728661091821,16.65,144.06,143.99,6.26502]
[1728661092122,3.473,144.0,143.99,0.12502]
[1728661092809,16.65,144.04,143.99,0.12502]
[1728661092810,3.4729,144.01,143.99,0.12502]
[1728661093122,3.4729,144.01,143.99,3.59822]
[1728661094722,16.65,144.04,143.99,3.59822]
[1728661094723,3.473,144.0,143.99,0.12502]
[1728661098213,7.4445,144.03,143.99,0.12502]
[1728661098520,3.473,144.01,143.99,0.12502]
[1728661098722,16.65,144.02,143.99,0.12502]
[1728661100312,3.473,144.0,143.99,0.12502]
[1728661102612,16.65,144.02,143.99,0.12502]
[1728661102823,3.4729,144.01,143.99,0.12502]
[1728661103212,3.473,144.0,143.99,0.12502]
[1728661105326,3.4729,144.01,143.99,0.12502]
[1728661106426,3.4729,144.01,143.99,3.59832]
[1728661109424,3.4729,144.01,143.99,0.12502]
[1728661109623,16.65,144.02,143.99,0.12502]
[1728661109815,20.123,144.0,143.99,0.12502]
[1728661110622,33.3,144.0,143.93,1.50572]
[1728661110924,16.65,143.96,143.93,0.12502]
[1728661111320,3.4744,143.95,143.93,3.59972]
[1728661111825,3.4741,143.96,143.94,3.4745]
[1728661112922,3.4741,143.96,143.93,0.12502]
[1728661113122,3.4741,143.96,143.93,3.59962]
[1728661113325,16.65,143.98,143.93,3.59962]
[1728661113919,20.1245,143.94,143.93,0.12502]
[1728661116133,3.4744,143.95,143.93,3.59972]
[1728661118327,20.1241,143.96,143.93,0.12502]
[1728661118526,20.1241,143.96,143.94,3.4744]
[1728661119830,20.1241,143.96,143.93,3.59962]
[1728661120436,10.68,143.95,143.93,0.12502]
[1728661120634,14.1545,143.94,143.93,0.12502]
[1728661122538,3.4745,143.94,143.93,0.12502]
[1728661126631,3.475,143.92,143.87,0.12502]
[1728661126826,16.69,143.91,143.87,6.24502]
[1728661127038,16.69,143.91,143.87,0.12502]
[1728661127234,16.69,143.91,143.87,3.60112]
[1728661127542,16.69,143.89,143.87,0.12502]
[1728661127742,3.4759,143.88,143.87,0.12502]
[1728661127937,20.1659,143.88,143.87,0.12502]
[1728661128737,16.69,143.88,143.83,3.4771]
[1728661128929,16.69,143.86,143.83,3.4771]
[1728661129123,16.69,143.86,143.82,2.6821]
[1728661129338,3.4768,143.85,143.82,12.2794]
[1728661130234,16.69,143.86,143.82,9.5973]
[1728661130538,3.4769,143.85,143.82,9.5973]
[1728661132837,3.4769,143.85,143.83,3.4771]
[1728661133234,20.1666,143.86,143.83,3.4771]
[1728661134437,3.4768,143.85,143.82,9.5972]
[1728661137438,3.4763,143.87,143.85,3.4766]
[1728661137639,16.69,143.88,143.82,6.12]
[1728661137837,1.4035,143.9,143.82,22.81]
[1728661137838,18.0935,143.9,143.82,22.81]
[1728661138339,20.1656,143.9,143.87,3.476]
[1728661140337,16.69,143.92,143.83,19.5258]
[1728661141046,3.4752,143.91,143.83,19.5258]
[1728661141439,3.4752,143.91,143.88,3.4758]
[1728661141946,16.69,143.92,143.88,3.4758]
[1728661142146,16.69,143.92,143.86,6.12]
[1728661142440,16.69,143.9,143.86,9.5963]
[1728661142946,3.4757,143.89,143.86,9.5963]
[1728661143444,3.4757,143.89,143.87,3.4762]
[1728661146340,3.4757,143.89,143.86,9.5963]
[1728661146838,3.4757,143.89,143.87,3.4762]
[1728661147038,20.1655,143.9,143.86,6.12]
[1728661147233,16.69,143.92,143.86,6.12]
[1728661147641,3.4754,143.91,143.88,3.4757]
[1728661148334,3.4754,143.91,143.86,6.12]
[1728661148541,3.4754,143.91,143.89,3.4757]
[1728661149245,0.12502,143.93,143.9,3.4754]
[1728661149554,0.12502,143.93,143.87,3.43779652]
[1728661149846,0.12502,143.93,143.91,3.4751]
[1728661150241,0.12502,143.93,143.87,3.43779652]
[1728661150442,0.12502,143.93,143.92,3.475]
[1728661151845,0.12502,143.93,143.9,6.12]
[1728661151846,16.81502,143.93,143.9,6.12]
[1728661152045,16.69,143.91,143.9,6.12]
[1728661152242,16.69,143.91,143.87,6.12]
[1728661152551,16.69,143.91,143.88,3.4757]
[1728661152849,20.1654,143.91,143.88,3.4757]
[1728661153053,16.69,143.89,143.87,9.5962]
[1728661153850,20.1658,143.89,143.87,6.12]
[1728661155651,20.1658,143.89,143.87,9.5961]
[1728661158447,16.69,143.89,143.87,9.5961]
[1728661159653,16.69,143.89,143.87,6.12]
[1728661160160,3.4759,143.88,143.87,6.12]
[1728661160656,20.1659,143.89,143.87,6.12]
[1728661161649,20.1659,143.89,143.86,3.4764]
[1728661162752,20.1659,143.89,143.87,3.4761]
[1728661166063,16.69,143.89,143.84,6.12]
[1728661166260,3.4761,143.88,143.84,6.12]
[1728661166458,16.69,143.89,143.84,6.12]
[1728661166857,3.4762,143.88,143.85,3.4765]
[1728661167257,16.69,143.89,143.85,3.4765]
[1728661167561,3.4763,143.87,143.85,3.4765]
[1728661167755,16.69,143.87,143.82,1.3724]
[1728661168064,16.69,143.85,143.81,6.24502]
[1728661168468,16.69,143.85,143.81,9.72252]
[1728661168662,3.4771,143.84,143.81,6.24502]
[1728661169365,16.69,143.85,143.82,3.4772]
[1728661169561,20.1668,143.85,143.82,3.4772]
[1728661170067,16.69,143.87,143.81,6.24502]
[1728661170271,20.1663,143.87,143.85,3.4766]
[1728661170972,3.4767,143.86,143.81,6.24502]
[1728661171167,16.69,143.87,143.81,6.24502]
[1728661171470,3.4774,143.82,143.81,6.24502]
[1728661171666,3.4774,143.82,143.81,0.12502]
[1728661173063,20.1674,143.82,143.81,0.12502]
[1728661177575,16.69,143.83,143.81,3.60252]
[1728661178168,20.1673,143.83,143.81,0.12502]
[1728661180381,3.4774,143.82,143.81,0.12502]
[1728661181077,16.69,143.83,143.81,3.60242]
[1728661181281,16.69,143.83,143.81,0.12502]
[1728661181877,20.1672,143.83,143.81,3.60252]
[1728661182979,3.4774,143.82,143.81,0.12502]
[1728661183175,20.1674,143.82,143.81,0.12502]
[1728661186976,16.69,143.83,143.81,0.12502]
[1728661187176,20.1673,143.83,143.81,0.12502]
[1728661187372,16.69,143.83,143.81,0.12502]
[1728661187574,20.1667,143.85,143.83,3.4769]
[1728661187781,16.69,143.85,143.81,0.12502]
[1728661188183,3.4769,143.84,143.82,3.4772]
[1728661190682,16.69,143.85,143.81,0.12502]
[1728661190880,16.69,143.85,143.84,3.4769]
[1728661191084,3.4766,143.86,143.84,3.4769]
[1728661191881,3.4766,143.86,143.83,3.477]
[1728661193984,3.4767,143.85,143.83,3.477]
[1728661194480,10.68,143.84,143.83,3.477]
[1728661196178,3.4767,143.85,143.83,3.477]
[1728661196382,7.26133323,144.01,143.81,0.12502]
[1728661196383,3.476,143.88,143.86,3.4763]
[1728661196587,0.12502,143.93,143.82,10.68]
[1728661196588,2.7868,143.92,143.82,10.68]
[1728661196887,10.68,143.88,143.87,3.4762]
[1728661198280,10.68,143.88,143.85,6.1]
[1728661198481,10.68,143.86,143.85,6.1]
[1728661199181,10.68,143.86,143.85,9.5765]
[1728661200682,10.68,143.87,143.85,6.1]
[1728661200989,10.68,143.88,143.85,6.1]
[1728661201584,10.68,143.88,143.87,3.4762]
[1728661202279,2.7868,143.92,143.85,6.1]
[1728661202483,10.68,143.92,143.87,10.68]
[1728661202782,0.12502,143.93,143.88,10.68]
[1728661202982,0.12502,143.93,143.9,10.68]
[1728661203188,0.12502,143.93,143.92,3.475]
[1728661203385,0.12502,143.93,143.92,14.155]
[1728661203590,10.68,143.98,143.92,10.68]
[1728661203884,10.68,143.98,143.96,3.4738]
[1728661205390,10.68,143.98,143.93,6.1]
[1728661205583,10.68,143.98,143.97,3.4738]
[1728661205986,10.68,143.98,143.93,6.1]
[1728661206289,10.68,143.96,143.93,6.1]
[1728661206490,16.69,143.97,143.93,6.1]
[1728661207287,3.4737,143.98,143.94,3.4744]
[1728661207492,3.4737,143.98,143.93,6.1]
[1728661207886,3.4737,143.98,143.94,3.4744]
[1728661208186,3.4737,143.98,143.93,6.1]
[1728661208693,3.4737,143.98,143.96,3.4739]
[1728661209792,3.4737,143.98,143.93,6.1]
[1728661210097,3.4737,143.98,143.95,3.4741]
[1728661210587,3.4737,143.98,143.96,3.474]
[1728661210786,16.81502,143.99,143.96,3.474]
[1728661210990,20.28842,143.99,143.96,3.474]
[1728661212196,3.59842,143.99,143.96,3.474]
[1728661212596,0.12502,143.99,143.97,3.4736]
[1728661214103,0.12502,143.99,143.98,3.4735]
[1728661228506,10.79502,143.99,143.98,3.4735]
[1728661229209,0.12502,143.99,143.98,3.4735]
[1728661230805,0.12502,143.99,143.98,14.1435]
[1728661234514,10.67,144.03,144.02,3.4724]
[1728661234705,10.67,144.03,144.01,6.08]
[1728661234903,3.4732,144.0,143.97,9.5535]
[1728661235112,0.12502,144.05,143.97,6.08]
[1728661235410,10.67,144.0,143.97,6.08]
[1728661235609,10.67,144.0,143.99,3.4733]
[1728661236108,10.67,144.0,143.98,3.4735]
[1728661236807,14.1431,144.0,143.97,9.5536]
[1728661237014,10.67,143.98,143.94,1.4264]
[1728661237207,10.67,143.98,143.95,6.08]
[1728661237607,3.4739,143.97,143.95,6.08]
[1728661238315,3.4739,143.97,143.95,9.5542]
[1728661239009,10.67,143.98,143.95,9.5542]
[1728661239210,14.1436,143.98,143.95,9.5542]
[1728661241816,14.1436,143.98,143.96,3.474]
[1728661243122,14.144,143.97,143.95,6.08]
[1728661244017,14.144,143.97,143.95,9.5542]
[1728661246521,14.144,143.97,143.95,3.4742]
[1728661248523,14.144,143.97,143.94,9.5544]
[1728661250023,10.67,143.98,143.94,6.08]
[1728661250524,14.1436,143.98,143.95,3.474]
[1728661250823,10.67,143.98,143.94,6.08]
[1728661251025,10.67,143.98,143.94,16.75]
[1728661251419,1.3374,144.03,143.94,16.75]
[1728661251623,10.67,143.98,143.94,16.75]
[1728661252428,10.67,143.99,143.98,3.4735]
[1728661252725,10.67,144.0,143.96,10.67]
[1728661253224,10.67,144.0,143.99,3.4733]
[1728661254018,10.67,144.0,143.98,9.5334]
[1728661255140,10.67,144.0,143.98,6.06]
[1728661255339,10.67,144.0,143.99,3.4733]
[1728661255840,10.67,144.0,143.98,9.5334]
[1728661256434,14.1432,144.0,143.98,9.5334]
[1728661257335,10.67,144.0,143.98,9.5334]
[1728661259142,10.67,144.0,143.99,3.4733]
[1728661260939,14.1431,144.0,143.98,9.5334]
[1728661261237,10.67,144.0,143.98,9.5334]
[1728661262031,14.1432,144.0,143.98,9.5335]
[1728661262236,14.1432,144.0,143.98,6.06]
[1728661262641,10.67,144.0,143.98,6.06]
[1728661262944,77.85083308,144.04,143.99,10.67]
[1728661262945,87.09883308,144.04,143.99,10.67]
[1728661263346,87.09883308,144.04,144.03,3.4723]
[1728661263639,10.79502,144.05,144.03,3.4723]
[1728661264344,14.26702,144.05,144.03,3.4723]
[1728661265235,14.26702,144.05,144.02,9.5324]
[1728661265936,3.4721,144.04,144.02,9.5324]
[1728661266244,10.79502,144.05,144.02,9.5324]
[1728661267445,14.26702,144.05,144.02,9.5324]
[1728661267945,10.79502,144.05,144.02,9.5324]
[1728661268135,3.4723,144.04,144.02,6.06]
[1728661268341,10.67,144.03,144.02,6.06]
[1728661269742,10.67,144.03,144.01,6.06]
[1728661270044,14.1427,144.02,144.01,6.06]
[1728661274547,14.1427,144.02,144.0,3.473]
[1728661278054,10.67,144.03,143.99,6.06]
[1728661278263,14.1424,144.03,144.01,3.4728]
[1728661278558,10.67,144.02,143.99,6.06]
[1728661278762,14.1427,144.02,144.0,3.473]
[1728661279059,14.1427,144.02,143.99,6.06]
[1728661279060,10.67,144.01,143.96,12.0509]
[1728661279359,0.12502,144.05,144.0,3.473]
[1728661279360,14.1426,144.02,144.0,3.473]
[1728661283061,14.1426,144.02,143.99,6.04]
[1728661283356,14.1426,144.02,143.99,9.5131]
[1728661284159,14.1426,144.02,144.0,3.473]
[1728661285663,0.12502,144.05,143.99,16.71]
[1728661285864,0.12502,144.05,144.02,10.67]
[1728661286666,0.12502,144.05,144.03,3.4721]
[1728661287156,0.12502,144.05,144.04,3.4721]
[1728661290061,0.12502,144.05,144.03,6.04]
[1728661290252,14.1421,144.04,144.03,6.04]
[1728661295567,10.67,144.04,144.03,6.04]
[1728661297666,14.1421,144.04,144.03,6.04]
[1728661299465,10.67,144.04,143.96,10.67]
[1728661299771,10.67,144.0,143.99,6.04]
[1728661300269,10.67,144.0,143.99,9.5133]
[1728661303277,10.67,144.01,143.99,6.04]
[1728661304170,14.1428,144.01,143.99,9.5132]
[1728661308075,10.67,144.02,144.0,3.473]
[1728661308275,10.67,144.02,143.99,6.04]
[1728661308681,14.1426,144.02,144.0,3.4729]
[1728661310674,10.67,144.02,144.0,3.4729]
[1728661312380,10.67,144.03,144.01,3.4726]
[1728661312688,3.4722,144.04,144.0,10.67]
[1728661312975,0.12502,144.05,144.0,10.67]
[1728661313177,3.59692,144.05,144.03,3.4721]
[1728661313376,0.12502,144.05,144.01,10.67]
[1728661313780,0.12502,144.05,144.03,3.4722]
[1728661314375,10.79502,144.05,144.03,3.4722]
[1728661314777,14.26702,144.05,144.03,3.4722]
[1728661315182,10.79502,144.05,144.0,12.0768]
[1728661315486,3.4721,144.04,144.02,3.4724]
[1728661316891,10.67,144.03,144.0,1.4068]
[1728661317092,10.67,144.02,144.01,3.4727]
[1728661317684,14.1426,144.02,144.0,3.4729]
[1728661318096,10.67,144.04,143.99,20.22619132]
[1728661318387,3.4721,144.04,144.02,3.4724]
[1728661319388,14.26692,144.05,144.03,9.4921]
[1728661319788,3.59692,144.05,144.03,9.4921]
[1728661319987,10.67,144.04,144.03,9.4921]
[1728661320184,14.1421,144.04,144.03,6.02]